bitfinex-derivatives/quotes_SOLF0:USTF0_20251222
["timestamp","ask_amount","ask_price","bid_price","bid_amount"]
[1766426640547,109.61013789,127.06,127.02,0.05378292]
[1766426640847,16.63013789,127.06,127.02,0.05378292]
[1766426641044,109.61013789,127.06,127.02,0.05378292]
[1766426641346,16.63013789,127.06,127.02,0.05378292]
[1766426641553,16.5799798,127.04,126.98,2.79598122]
[1766426642449,16.5799798,127.06,126.98,113.09118122]
[1766426642643,109.5599798,127.06,127.0,0.0595912]
[1766426643546,109.5599798,127.06,127.01,7.0887]
[1766426643749,0.05604557,127.05,127.01,7.0887]
[1766426649253,106.92,127.08,127.02,7.088]
[1766426649442,13.94,127.09,126.98,121.977861]
[1766426649642,13.94,127.08,127.0,112.6575798]
[1766426650039,16.3199798,127.08,127.03,7.0875]
[1766426650240,0.05455901,127.07,127.04,0.05521478]
[1766426651146,13.99455901,127.07,127.04,0.05521478]
[1766426651345,0.05455901,127.07,127.04,0.05521478]
[1766426651552,0.05455901,127.07,127.04,7.14221478]
[1766426654153,0.05455901,127.07,127.04,0.05521478]
[1766426654456,2.43453881,127.07,127.04,0.05521478]
[1766426654654,16.37453881,127.07,126.98,119.5978812]
[1766426654846,13.94,127.05,127.0,7.089]
[1766426655047,16.3199798,127.05,127.0,7.089]
[1766426655240,16.3199798,127.05,126.98,95.77598122]
[1766426655644,0.0510904,127.03,127.0,0.05544658]
[1766426661858,16.3710702,127.03,126.98,2.79598122]
[1766426662058,16.3199798,127.01,126.98,2.79598122]
[1766426662356,16.3199798,127.01,126.96,7.0916]
[1766426662559,16.3199798,127.01,126.94,92.98]
[1766426662957,0.05422659,126.99,126.96,0.05083003]
[1766426663147,0.05422659,126.99,126.96,7.14233003]
[1766426666346,16.37420639,126.99,126.96,0.00083003]
[1766426666545,16.37420639,126.99,126.9,110.3591]
[1766426666766,16.3199798,126.97,126.88,12.07721316]
[1766426667061,16.3199798,126.95,126.87,24.14528681]
[1766426667260,16.3199798,126.95,126.86,203.3951]
[1766426667647,0.05853675,126.92,126.89,0.05636662]
[1766426669352,16.3199798,126.95,126.89,0.05636662]
[1766426669762,13.94,126.95,126.89,0.05636662]
[1766426670363,0.05614321,126.93,126.89,0.05636662]
[1766426670662,0.05614321,126.93,126.9,7.0949]
[1766426676773,106.0,126.97,126.91,7.0943]
[1766426677073,13.0,126.96,126.91,7.0943]
[1766426677668,0.05143992,126.95,126.92,0.05485535]
[1766426679561,13.05143992,126.95,126.89,7.0951]
[1766426679861,15.3799798,126.95,126.89,7.0951]
[1766426680574,0.05114103,126.93,126.91,0.05280768]
[1766426682176,13.05114103,126.93,126.86,116.35481979]
[1766426682977,13.05114103,126.93,126.89,7.0952]
[1766426683275,13.05114103,126.93,126.9,7.0948]
[1766426683276,0.00114103,126.93,126.9,7.0948]
[1766426683571,15.3799798,126.99,126.9,110.3654]
[1766426684478,15.3799798,126.99,126.94,7.0927]
[1766426684679,0.05774893,126.98,126.95,0.05064656]
[1766426684979,13.05774893,126.98,126.95,0.05064656]
[1766426685876,13.0,126.96,126.87,110.389]
[1766426686072,16.72651089,126.96,126.87,110.389]
[1766426686673,16.72651089,126.96,126.9,7.0947]
[1766426686878,0.05595509,126.93,126.9,7.14453193]
[1766426691688,0.05595509,126.93,126.9,0.04983193]
[1766426693581,13.05595509,126.93,126.9,0.04983193]
[1766426698492,110.2991,126.98,126.9,0.04983193]
[1766426698493,13.0,126.98,126.9,0.04983193]
[1766426698691,13.0,126.98,126.89,110.3731]
[1766426699094,13.0,126.97,126.91,7.0944]
[1766426699484,0.05627826,126.95,126.93,0.05252179]
[1766426701492,13.05627826,126.95,126.86,110.3992]
[1766426701797,13.0,126.95,126.85,116.69578651]
[1766426702296,13.0,126.95,126.85,93.06]
[1766426702485,0.05010399,126.91,126.89,0.05521693]
[1766426703097,0.05010399,126.91,126.89,7.15071693]
[1766426703482,0.05010399,126.91,126.89,0.05521693]
[1766426704392,13.05010399,126.91,126.82,2.69029841]
[1766426704596,13.0,126.91,126.82,2.69029841]
[1766426705401,0.05860102,126.88,126.85,0.05883477]
[1766426706905,12.46,126.87,126.8,93.06]
[1766426707092,12.46,126.85,126.75,110.4976]
[1766426707284,12.46,126.84,126.75,110.4976]
[1766426707485,12.46,126.84,126.76,7.1025]
[1766426707994,0.05880084,126.81,126.79,0.05686447]
[1766426708699,12.51880084,126.81,126.74,7.1037]
[1766426709096,12.51880084,126.81,126.7,110.537]
[1766426709297,12.46,126.81,126.7,110.537]
[1766426709691,12.46,126.79,126.69,203.6227]
[1766426710002,0.05975163,126.77,126.74,0.05368613]
[1766426710903,12.51975163,126.77,126.69,100.1864]
[1766426711103,12.46,126.77,126.69,100.1864]
[1766426711305,12.46,126.77,126.69,93.08]
[1766426711496,12.46,126.75,126.65,93.1]
[1766426711997,0.05004742,126.71,126.69,0.05181959]
[1766426714700,4.742e-05,126.71,126.69,0.05181959]
[1766426720015,4.742e-05,126.71,126.65,93.1]
[1766426720208,12.46004742,126.71,126.64,7.1093]
[1766426720710,12.46004742,126.71,126.62,110.6098]
[1766426720909,12.46,126.73,126.64,110.592]
[1766426721113,0.05779733,126.7,126.67,0.05260705]
[1766426724809,12.46,126.72,126.67,0.05260705]
[1766426724810,105.66,126.74,126.67,0.05260705]
[1766426725714,0.0576452,126.72,126.67,0.05260705]
[1766426725915,0.0576452,126.72,126.67,7.16030705]
[1766426726117,0.0576452,126.72,126.67,0.05260705]
[1766426726312,12.46,126.76,126.67,110.61740705]
[1766426726615,12.46,126.76,126.67,110.5648]
[1766426727205,0.05811776,126.73,126.7,0.05756771]
[1766426729118,12.46,126.76,126.7,0.05756771]
[1766426730223,0.05664768,126.74,126.7,0.05756771]
[1766426730411,7.1019,126.78,126.7,0.05756771]
[1766426730412,104.45,126.78,126.7,0.05756771]
[1766426730611,104.45,126.78,126.69,110.5473]
[1766426731502,0.05954987,126.75,126.72,0.05247786]
[1766426732820,93.2,126.78,126.72,7.15737786]
[1766426733619,0.05090612,126.76,126.72,7.15737786]
[1766426734808,0.05090612,126.76,126.72,0.05247786]
[1766426735915,12.19090612,126.76,126.72,0.05247786]
[1766426743915,0.05090612,126.76,126.72,0.05247786]
[1766426747723,0.05090612,126.76,126.72,7.15737786]
[1766426747929,0.05090612,126.76,126.72,0.05247786]
[1766426749728,0.05090612,126.76,126.73,7.1044]
[1766426751328,14.53144697,126.78,126.73,7.1044]
[1766426751932,14.53144697,126.76,126.72,7.15747786]
[1766426752131,14.53144697,126.76,126.72,7.105]
[1766426752333,0.0512941,126.75,126.73,0.05730296]
[1766426752631,2.44274107,126.75,126.71,7.1056]
[1766426753629,0.0512941,126.75,126.71,7.1056]
[1766426753822,0.0512941,126.75,126.72,0.05367048]
[1766426762334,12.1912941,126.75,126.72,0.05367048]
[1766426762534,0.0512941,126.75,126.72,0.05367048]
[1766426763429,0.0012941,126.75,126.72,0.05367048]
[1766426764737,0.0012941,126.75,126.73,7.1044]
[1766426765139,12.14,126.83,126.75,110.4976]
[1766426765535,12.14,126.83,126.74,110.5033]
[1766426765839,14.53144697,126.83,126.74,110.5033]
[1766426766133,2.39144697,126.79,126.72,93.2]
[1766426767141,0.05381016,126.77,126.74,0.05971187]
[1766426767632,13.83144697,126.82,126.74,0.05971187]
[1766426767833,13.83144697,126.82,126.73,110.5126]
[1766426768523,13.83144697,126.82,126.76,7.1027]
[1766426768729,0.06048783,126.79,126.76,7.15497996]
[1766426769337,0.06048783,126.79,126.76,0.05227996]
[1766426771435,0.06048783,126.79,126.76,7.15497996]
[1766426775839,0.06048783,126.79,126.76,0.05227996]
[1766426776442,0.06048783,126.79,126.76,7.15507996]
[1766426776743,0.06048783,126.79,126.76,0.05227996]
[1766426777644,0.06048783,126.79,126.76,0.00227996]
[1766426777645,11.50048783,126.79,126.76,0.00227996]
[1766426785147,0.06048783,126.79,126.76,0.00227996]
[1766426786459,0.06048783,126.79,126.76,7.10507996]
[1766426789151,0.06048783,126.79,126.76,0.00227996]
[1766426789356,11.50048783,126.79,126.76,0.00227996]
[1766426793658,0.06048783,126.79,126.76,0.00227996]
[1766426794658,0.06048783,126.79,126.76,7.10497996]
[1766426795963,0.06048783,126.79,126.76,0.00227996]
[1766426796969,0.06048783,126.79,126.76,7.10457996]
[1766426799165,10.91048783,126.79,126.76,0.00227996]
[1766426800074,0.06048783,126.79,126.76,0.00227996]
[1766426801769,10.91048783,126.79,126.76,0.00227996]
[1766426803670,0.06048783,126.79,126.76,0.00227996]
[1766426808173,0.06048783,126.79,126.76,7.10497996]
[1766426812181,10.91048783,126.79,126.76,0.00227996]
[1766426812674,10.85,126.78,126.71,102.87723336]
[1766426813074,10.85,126.77,126.71,100.2851]
[1766426813270,10.85,126.77,126.71,7.1051]
[1766426813478,0.05960602,126.75,126.73,0.05269251]
[1766426815067,10.85,126.74,126.68,9.69723336]
[1766426815370,10.85,126.74,126.66,9.69723336]
[1766426816170,0.05283405,126.71,126.69,0.05424144]
[1766426819681,10.85,126.76,126.69,0.05424144]
[1766426819876,10.85,126.76,126.67,110.5648]
[1766426820181,10.85,126.75,126.69,7.1067]
[1766426820580,10.85,126.75,126.66,120.27073336]
[1766426820883,0.05379484,126.73,126.71,0.05623993]
[1766426821779,10.85,126.77,126.71,0.05623993]
[1766426821984,93.18,126.79,126.71,0.05623993]
[1766426821985,10.85,126.78,126.71,0.05623993]
[1766426822178,10.85,126.78,126.69,213.44393336]
[1766426822484,10.85,126.78,126.71,110.5323]
[1766426822871,0.05429711,126.76,126.73,0.0601422]
[1766426823689,0.05429711,126.76,126.73,7.1644422]
[1766426823873,10.85,126.8,126.73,0.0601422]
[1766426824074,10.85,126.82,126.73,110.515]
[1766426824775,10.85,126.82,126.73,203.715]
[1766426825084,0.05622,126.79,126.76,0.05018463]
[1766426826386,10.71622,126.79,126.76,0.05018463]
[1766426828383,0.05622,126.79,126.76,0.05018463]
[1766426834990,10.71622,126.79,126.76,0.05018463]
[1766426835291,10.71622,126.79,126.72,100.2846]
[1766426835594,10.66,126.79,126.72,100.2846]
[1766426836290,0.04985487,126.77,126.74,0.05492096]
[1766426836693,10.70985487,126.77,126.74,0.05492096]
[1766426837896,10.70985487,126.77,126.72,93.18]
[1766426838198,10.70985487,126.77,126.7,7.1057]
[1766426838884,10.70985487,126.77,126.72,0.05541731]
[1766426842298,10.70985487,126.77,126.68,93.18]
[1766426842299,10.66,126.75,126.68,7.1069]
[1766426843091,0.05573796,126.73,126.7,0.05297512]
[1766426843996,10.71573796,126.73,126.7,0.05297512]
[1766426849299,0.05573796,126.73,126.7,0.05297512]
[1766426852001,10.74573796,126.73,126.7,0.00297512]
[1766426858109,0.05573796,126.73,126.7,0.00297512]
[1766426859314,0.05573796,126.73,126.71,7.1055]
[1766426861106,10.55,126.78,126.72,7.1051]
[1766426862216,0.05867501,126.76,126.74,0.05235111]
[1766426870117,10.60867501,126.76,126.74,0.00235111]
[1766426874425,10.60867501,126.76,126.72,7.105]
[1766426875518,10.60867501,126.76,126.73,0.05540403]
[1766426876216,10.60867501,126.76,126.69,9.69723336]
[1766426876422,10.60867501,126.76,126.66,206.16098833]
[1766426876717,10.55,126.76,126.66,206.16098833]
[1766426876918,10.55,126.74,126.66,206.16098833]
[1766426877313,0.05733246,126.71,126.69,0.05665026]
[1766426877624,0.05733246,126.71,126.69,7.16335026]
[1766426878723,10.55,126.74,126.7,7.1062]
[1766426879725,0.05368471,126.73,126.7,7.1062]
[1766426880324,0.00368471,126.73,126.71,7.1054]
[1766426881713,0.00368471,126.73,126.72,7.1051]
[1766426886422,0.00368471,126.73,126.71,7.1056]
[1766426889727,0.00368471,126.73,126.69,0.05665026]
[1766426890728,0.00368471,126.73,126.69,7.16335026]
[1766426891117,0.00368471,126.73,126.7,7.1061]
[1766426892521,0.00368471,126.73,126.71,7.1056]
[1766426892832,0.00368471,126.73,126.69,0.05665026]
[1766426894835,0.00368471,126.73,126.7,7.1061]
[1766426899736,0.00368471,126.73,126.69,0.05665026]
[1766426899933,12.36118833,126.77,126.71,7.1052]
[1766426900939,0.05992635,126.75,126.73,0.05216864]
[1766426904338,0.05992635,126.75,126.73,7.15656864]
[1766426904533,9.97,126.78,126.73,7.15656864]
[1766426904737,9.97,126.8,126.73,0.05216864]
[1766426904948,9.49018833,126.83,126.76,7.1027]
[1766426905146,9.97,126.82,126.76,7.1027]
[1766426905340,9.97,126.84,126.76,93.2]
[1766426905736,0.06022231,126.81,126.79,0.05770979]
[1766426927762,9.50022231,126.81,126.76,100.3026]
[1766426928060,9.44,126.8,126.72,95.55118833]
[1766426928750,0.05329065,126.77,126.75,0.05784573]
[1766426928951,9.44,126.82,126.75,0.05784573]
[1766426929152,9.44,126.82,126.72,206.06968833]
[1766426929153,9.44,126.82,126.74,112.89428833]
[1766426929963,0.06024171,126.79,126.77,0.05519197]
[1766426933055,9.50024171,126.79,126.73,7.104]
[1766426933355,9.44,126.79,126.71,93.16]
[1766426933958,0.05726862,126.76,126.74,0.05817132]
[1766426934158,0.05724342,126.76,126.74,0.05817132]
[1766426936262,9.49724342,126.76,126.71,7.1056]
[1766426937371,9.49724342,126.76,126.72,0.05852615]
[1766426940966,9.49724342,126.76,126.7,93.16]
[1766426941665,9.44,126.75,126.69,7.1067]
[1766426941966,0.0546524,126.73,126.71,0.05442905]
[1766426947762,9.6246524,126.73,126.71,0.00442905]
[1766426949774,0.0546524,126.73,126.71,0.00442905]
[1766426956667,0.0046524,126.73,126.71,0.00442905]
[1766426956864,9.57,126.8,126.71,0.00442905]
[1766426957069,9.57,126.8,126.71,93.2]
[1766426957678,9.57,126.79,126.72,7.1048]
[1766426957874,9.62948285,126.77,126.74,0.05264584]
[1766426958183,9.62948285,126.77,126.74,0.00264584]
[1766426959378,9.57,126.76,126.69,7.1063]
[1766426960483,0.05420161,126.74,126.71,0.05617317]
[1766426961779,9.62420161,126.74,126.71,0.05617317]
[1766426975280,0.00420161,126.74,126.71,9.87617317]
[1766426975884,9.94,126.78,126.72,9.73]
[1766426976276,93.16,126.81,126.73,9.73]
[1766426976490,9.19,126.8,126.73,9.73]
[1766426976897,0.05651255,126.78,126.75,0.04990089]
[1766426985899,9.24651255,126.78,126.75,0.04990089]
[1766426987904,9.24651255,126.78,126.72,7.1045]
[1766426988907,9.24651255,126.78,126.74,0.05660443]
[1766426995722,9.24651255,126.78,126.72,7.1045]
[1766426995908,9.19,126.77,126.7,102.93]
[1766426996105,9.19,126.77,126.7,93.2]
[1766426996309,9.19,126.76,126.7,93.2]
[1766426996614,9.19,126.75,126.69,7.1064]
[1766426996812,9.19,126.72,126.71,8.127e-05]
[1766426998112,0.05332907,126.73,126.71,8.127e-05]
[1766426998515,9.24332907,126.73,126.71,8.127e-05]
[1766427004521,9.24332907,126.73,126.66,7.108]
[1766427004728,9.19,126.71,126.65,9.73]
[1766427005316,9.19,126.71,126.65,16.8389]
[1766427005513,0.06032312,126.69,126.67,0.05055369]
[1766427009225,9.81032312,126.69,126.67,0.00055369]
[1766427010732,9.81032312,126.69,126.62,93.2]
[1766427010928,9.75,126.67,126.6,13.40283251]
[1766427011530,9.75,126.67,126.62,7.1106]
[1766427011739,0.05458868,126.66,126.63,0.06017252]
[1766427013531,9.80458868,126.66,126.63,0.00017252]
[1766427013729,9.75,126.64,126.6,0.00283251]
[1766427013929,12.14080732,126.63,126.6,0.00283251]
[1766427014130,9.75,126.63,126.6,0.00283251]
[1766427014739,9.79980243,126.63,126.6,0.05461482]
[1766427014930,0.04980243,126.63,126.6,0.05461482]
[1766427016540,0.04980243,126.63,126.6,7.16611482]
[1766427017341,0.04980243,126.63,126.6,0.05461482]
[1766427017735,9.79980243,126.63,126.6,0.00461482]
[1766427018042,12.19060975,126.63,126.6,0.00461482]
[1766427018636,9.79980243,126.63,126.6,0.00461482]
[1766427019033,0.04980243,126.63,126.6,0.00461482]
[1766427023641,102.97,126.67,126.6,16.41631482]
[1766427023844,9.75,126.66,126.6,16.41631482]
[1766427024033,9.75,126.66,126.6,7.11631482]
[1766427024240,12.14080732,126.66,126.6,0.00461482]
[1766427024646,0.05298098,126.64,126.6,0.00461482]
[1766427025450,0.05298098,126.64,126.6,7.11631482]
[1766427031355,9.75,126.63,126.6,0.00461482]
[1766427041256,12.14080732,126.63,126.56,8.99]
[1766427042457,8.92266444,126.61,126.58,0.05693884]
[1766427043344,11.31347176,126.61,126.58,0.05693884]
[1766427044259,8.92266444,126.61,126.58,0.05693884]
[1766427065177,0.05266444,126.61,126.58,0.05693884]
[1766427065480,0.05266444,126.61,126.58,7.16943884]
[1766427066482,8.6,126.6,126.54,18.92723336]
[1766427066671,8.6,126.63,126.54,9.23]
[1766427066872,8.6,126.63,126.55,9.23]
[1766427067582,0.05533527,126.6,126.55,9.23]
[1766427068786,8.6,126.63,126.57,9.23]
[1766427068986,8.6,126.65,126.57,9.23]
[1766427069685,0.05249468,126.62,126.6,0.05242244]
[1766427069986,0.05249468,126.62,126.6,7.16412244]
[1766427073781,8.6,126.71,126.63,9.23]
[1766427074682,8.6,126.7,126.61,9.23]
[1766427074988,8.65191919,126.67,126.64,0.05476826]
[1766427075894,8.65191919,126.67,126.61,9.23]
[1766427076097,8.65191919,126.67,126.59,9.23]
[1766427076281,8.6,126.67,126.59,9.23]
[1766427076985,0.05834552,126.64,126.62,0.05306169]
[1766427077388,8.6,126.67,126.62,0.05306169]
[1766427078392,0.05323348,126.66,126.62,0.05306169]
[1766427078591,8.65323348,126.66,126.63,0.05127432]
[1766427079504,0.05323348,126.66,126.63,0.05127432]
[1766427079796,8.6,126.72,126.66,16.338]
[1766427079984,8.6,126.72,126.66,9.23]
[1766427080187,1.16026,126.73,126.66,9.23]
[1766427080390,101.88,126.77,126.69,9.23]
[1766427080689,8.6,126.82,126.74,9.23]
[1766427080894,8.6,126.84,126.77,9.23]
[1766427081091,7.0969,126.87,126.78,9.23]
[1766427081092,12.3455174,126.87,126.78,9.23]
[1766427081292,8.6,126.87,126.8,9.23]
[1766427081495,8.6,126.9,126.82,9.23]
[1766427081688,8.6,126.9,126.83,119.6569]
[1766427081993,0.05652614,126.88,126.85,0.05446488]
[1766427082405,0.05652614,126.88,126.82,93.28]
[1766427082406,8.60652614,126.88,126.82,93.28]
[1766427082703,8.55,126.88,126.82,93.28]
[1766427083204,8.55,126.88,126.82,102.34]
[1766427083396,0.05203814,126.86,126.84,0.05713925]
[1766427084497,0.05203814,126.86,126.79,9.06]
[1766427084693,8.60203814,126.86,126.8,93.24]
[1766427085601,8.60203814,126.86,126.82,0.05015143]
[1766427089206,0.05203814,126.86,126.82,0.05015143]
[1766427089390,3.7455174,126.93,126.82,9.11015143]
[1766427089594,3.7455174,126.93,126.82,9.06]
[1766427089794,3.7455174,126.93,126.82,102.24]
[1766427089795,3.7455174,126.91,126.82,102.24]
[1766427090408,0.05397428,126.88,126.85,0.05798272]
[1766427092597,8.60397428,126.88,126.8,102.22]
[1766427092904,8.55,126.88,126.8,9.06]
[1766427093099,8.55,126.88,126.8,102.22]
[1766427093494,110.3372,126.94,126.85,9.06]
[1766427093495,8.55,126.94,126.85,9.06]
[1766427093813,0.05332963,126.91,126.88,0.05678265]
[1766427094103,0.05332963,126.91,126.88,0.05292938]
[1766427094497,8.60332963,126.91,126.85,9.06]
[1766427094702,8.60332963,126.91,126.83,102.22]
[1766427094904,8.55,126.91,126.83,102.22]
[1766427095212,8.55,126.89,126.8,9.06]
[1766427095611,0.05855973,126.86,126.83,0.0441261]
[1766427099817,9.26855973,126.86,126.83,0.0041261]
[1766427101415,0.05855973,126.86,126.83,0.0041261]
[1766427109713,9.21,126.89,126.83,0.0041261]
[1766427110924,0.05359832,126.87,126.83,0.0041261]
[1766427111829,0.05359832,126.87,126.83,7.1028261]
[1766427112514,0.05359832,126.87,126.83,0.0041261]
[1766427114430,0.05359832,126.87,126.84,7.0982]
[1766427115129,9.21,126.89,126.84,7.0982]
[1766427116026,9.26017144,126.88,126.83,0.0041261]
[1766427116228,9.26017144,126.88,126.84,0.05590055]
[1766427120031,0.05017144,126.88,126.84,0.05590055]
[1766427121234,0.05017144,126.88,126.84,7.15420055]
[1766427124239,9.26017144,126.88,126.84,0.05590055]
[1766427124537,9.26017144,126.88,126.79,110.46]
[1766427124538,9.21,126.85,126.78,8.35]
[1766427124729,9.21,126.85,126.8,7.1005]
[1766427125538,0.05927729,126.84,126.81,0.05068547]
[1766427125735,8.87,126.88,126.81,15.39058547]
[1766427125935,8.87,126.88,126.81,8.29068547]
[1766427126840,0.05287429,126.86,126.81,8.29068547]
[1766427127241,8.87,126.9,126.83,8.24]
[1766427128238,0.05905908,126.88,126.85,7.15100037]
[1766427133751,0.05905908,126.88,126.85,0.05330037]
[1766427134056,8.92905908,126.88,126.85,0.00330037]
[1766427136846,8.87,126.87,126.85,0.00330037]
[1766427138546,0.05905908,126.88,126.85,0.00330037]
[1766427138755,8.92905908,126.88,126.85,0.00330037]
[1766427140858,8.87,126.87,126.85,0.00330037]
[1766427142459,8.87,126.87,126.81,101.36]
[1766427142756,8.87,126.87,126.81,108.46]
[1766427143060,8.87,126.87,126.81,101.36]
[1766427143455,0.05746938,126.85,126.83,0.05880059]
[1766427143854,8.21746938,126.85,126.78,8.48]
[1766427144058,10.54669485,126.84,126.77,8.48]
[1766427144358,8.16,126.84,126.77,8.48]
[1766427144559,8.16,126.86,126.8,8.48]
[1766427144955,0.05452,126.84,126.82,0.05623283]
[1766427146361,8.16,126.86,126.82,0.05623283]
[1766427147157,0.0542012,126.85,126.82,0.05623283]
[1766427152169,8.2142012,126.85,126.82,0.05623283]
[1766427153260,8.2142012,126.85,126.78,8.48]
[1766427153765,8.16,126.84,126.78,8.48]
[1766427154168,0.05585088,126.82,126.8,0.05421933]
[1766427164268,117.56343117,126.94,126.81,8.21]
[1766427164269,8.86,126.87,126.81,8.21]
[1766427164873,8.86,126.89,126.82,8.21]
[1766427165180,0.05390673,126.87,126.84,0.0541838]
[1766427169488,2.44060158,126.87,126.79,8.21]
[1766427169782,2.38669485,126.87,126.79,8.21]
[1766427170384,2.38669485,126.87,126.78,112.85369485]
[1766427170385,0.0605811,126.84,126.82,0.05223373]
[1766427171485,0.0605811,126.84,126.82,7.15163373]
[1766427171680,8.86,126.88,126.82,7.15163373]
[1766427171887,8.86,126.88,126.83,8.21]
[1766427172685,0.05971761,126.87,126.83,8.21]
[1766427174679,95.50669485,126.92,126.84,8.21]
[1766427175485,2.38669485,126.91,126.84,8.21]
[1766427175683,0.05882261,126.89,126.86,0.0571874]
[1766427176778,8.91882261,126.89,126.82,8.21]
[1766427176978,8.86,126.89,126.82,8.21]
[1766427177991,0.06057499,126.87,126.84,0.05459779]
[1766427179890,8.92057499,126.87,126.84,0.00459779]
[1766427180090,8.86,126.86,126.8,8.21]
[1766427181291,0.05569677,126.84,126.82,0.05480488]
[1766427182690,0.05569677,126.84,126.82,0.00480488]
[1766427184191,0.05569677,126.84,126.78,108.4313]
[1766427184693,8.91569677,126.84,126.78,108.4313]
[1766427184995,8.86,126.83,126.76,15.3125]
[1766427185193,0.05524881,126.81,126.76,15.3125]
[1766427187996,0.05524881,126.81,126.76,8.21]
[1766427188194,8.54524881,126.81,126.74,18.45431016]
[1766427188407,8.54524881,126.81,126.74,8.87]
[1766427188996,15.64544881,126.81,126.74,8.87]
[1766427189198,8.54524881,126.81,126.74,8.87]
[1766427189495,8.54524881,126.81,126.74,15.9737]
[1766427190197,0.05524881,126.81,126.75,8.87]
[1766427190797,0.05524881,126.81,126.75,119.364]
[1766427190991,0.05524881,126.81,126.76,8.87]
[1766427191299,0.05524881,126.81,126.77,15.9719]
[1766427195201,0.05524881,126.81,126.78,8.87]
[1766427195501,15.5879,126.85,126.78,15.9716]
[1766427196395,93.12,126.86,126.8,8.87]
[1766427196601,0.05051895,126.84,126.82,0.05080606]
[1766427200803,93.12,126.86,126.82,8.92080606]
[1766427201002,124.5246,126.94,126.82,8.92080606]
[1766427201003,8.49,126.91,126.82,93.19080606]
[1766427201306,8.49,126.91,126.82,93.14]
[1766427201898,0.05521746,126.88,126.85,0.05449014]
[1766427202203,8.54521746,126.88,126.85,0.00449014]
[1766427203905,8.54521746,126.88,126.79,93.14]
[1766427204105,8.49,126.88,126.79,93.14]
[1766427204607,8.49,126.88,126.8,7.1001]
[1766427204901,0.05321025,126.85,126.83,0.05787204]
[1766427211214,0.05321025,126.85,126.79,93.14]
[1766427211607,8.54321025,126.85,126.79,93.14]
[1766427212703,0.05321025,126.85,126.81,7.0999]
[1766427216618,0.05321025,126.85,126.82,7.0994]
[1766427216913,0.00321025,126.85,126.8,110.4518]
[1766427217510,0.00321025,126.85,126.79,203.6004]
[1766427218008,0.00321025,126.85,126.81,0.05017082]
[1766427218201,0.00321025,126.85,126.81,7.14967082]
[1766427218519,7.90321025,126.85,126.81,0.05017082]
[1766427225425,0.00321025,126.85,126.81,0.05017082]
[1766427226020,0.00321025,126.85,126.83,7.0989]
[1766427227528,0.00321025,126.85,126.81,0.05017082]
[1766427228723,0.00321025,126.85,126.82,7.0994]
[1766427231324,0.00321025,126.85,126.81,0.05017082]
[1766427233825,0.00321025,126.85,126.81,7.15007082]
[1766427244134,0.00321025,126.85,126.81,0.05017082]
[1766427249455,0.00321025,126.85,126.81,7.15007082]
[1766427251252,0.00321025,126.85,126.82,7.0993]
[1766427251548,0.00321025,126.85,126.81,0.05017082]
[1766427252749,0.00321025,126.85,126.83,7.0987]
[1766427255655,0.00321025,126.85,126.82,7.0994]
[1766427255852,0.00321025,126.85,126.81,0.05017082]
[1766427256052,6.38321025,126.85,126.81,0.05017082]
[1766427268765,6.38321025,126.85,126.81,7.15007082]
[1766427270265,6.38321025,126.85,126.81,0.05017082]
[1766427271063,6.38,126.83,126.81,0.00017082]
[1766427273759,6.38321025,126.85,126.81,0.00017082]
[1766427278371,6.38321025,126.85,126.81,7.09997082]
[1766427282473,6.38321025,126.85,126.81,0.00017082]
[1766427287376,5.78,126.83,126.81,0.00017082]
[1766427291985,5.78321025,126.85,126.81,0.00017082]
[1766427300490,5.78,126.84,126.81,0.00017082]
[1766427300982,5.78,126.83,126.81,0.00017082]
[1766427301593,12.88101025,126.85,126.81,0.00017082]
[1766427302292,5.78,126.84,126.81,0.00017082]
[1766427303094,7.10101025,126.85,126.81,0.00017082]
[1766427303396,5.78,126.92,126.81,114.17424808]
[1766427303598,5.78,126.92,126.82,9.84475678]
[1766427303793,5.78,126.91,126.84,7.0983]
[1766427304285,5.78,126.89,126.83,93.14]
[1766427304488,5.8379593,126.88,126.83,93.14]
[1766427306885,5.8379593,126.88,126.8,7.1002]